{"text_format":"1","workbook":"xlsx","n_sheets":3,"sheets":["Mapa","Fronteras","Datos"],"not_rendered":{"charts":0,"images":65,"macros":1,"external_links":0,"defined_names":19,"comments":0,"pivot_tables":0},"unopened":[],"bounds":{"document_bytes":16777216,"sheet_cells":100000,"rows_first":2000,"rows_last":500,"rows_between":2000,"halvings":0,"cell_chars":16384,"cell_head_chars":4096},"cells_cut":0,"cells_raw":0,"read":"whole","date_system":"1900"}

{"sheet":"Mapa","index":0,"n_rows":25,"n_cols":6,"rows_kept":25,"cut":false,"hidden":false,"merged":[[12,4,13,4]]}
[]
[null,null,null,null,{"$f":"HYPERLINK(\"https://es.wikipedia.org/wiki/\" & IF(miSelección=\"\",\"África\",LEFT(miSelección,IFERROR(FIND(\" - \",miSelección)-1,LEN(miSelección)))),IF(miSelección=\"\",\"Seleccionar algún país de África\",miSelección&\"\"))","v":"Seleccionar algún país de África"}]
[null,null,null,null,null," "]
[null,null,null,"ü",{"$f":"IF(miSelección=\"\",\"\",IFERROR(SUBSTITUTE(SUBSTITUTE(TRIM(INDEX(Datos[Nombre oficial],miFilaDatos)&\" *\"),\" *\",\"\"),\"*\",miSelección),\"\"))","v":""}," "]
[null,null,null,"\u0097",null," "]
[null,null,null,null,{"$f":"IF(miSelección=\"\",0,IFERROR(INDEX(Datos[Población],miFilaDatos),0))","v":0}," "]
[null,null,null,null,null," "]
[null,null,null,null,{"$f":"IF(miSelección=\"\",0,IFERROR(INDEX(Datos[Población (2018)],miFilaDatos),0))","v":0}," "]
[null,null,null,null,{"$f":"IF(miSelección=\"\",0,IFERROR(INDEX(Datos[Superficie (km²)],miFilaDatos),0))","v":0}," "]
[null,null,null,null,null," "]
[null,null,null,null,{"$f":"IF(miSelección=\"\",\"\",IFERROR(\"Capital: \" & INDEX(Datos[Capital],miFilaDatos),\"\"))","v":""}," "]
[null,null,null,null,{"$f":"IF(miSelección=\"\",\"\",IFERROR(\"Idioma oficial: \" & INDEX(Datos[Idioma oficial],miFilaDatos),\"\"))","v":""}," "]
[null,null,null,null,{"$f":"IF(miSelección=\"\",\"\",IFERROR(\"Gobierno: \" & INDEX(Datos[Forma de Gobierno],miFilaDatos),\"\"))","v":""}," "]
[null,null,null,null,null," "]
[null,null,null,null,{"$f":"IF(miSelección=\"\",\"\",IFERROR(\"Moneda: \" & INDEX(Datos[Moneda],miFilaDatos),\"\"))","v":""}," "]
[null,null,null,null,{"$f":"IF(miSelección=\"\",0,IFERROR(INDEX(Datos[PIB per cápita (US$)],miFilaDatos),0))","v":0}," "]
[null,null,null,null,null," "]
[]
[null,null,null,null,"Clic aquí para reiniciar el mapa de África"]
[]
[null,null,null,"Blog:","#ExcelPedroWave"]
[null,null,null,"YouTube:","Excel Pedro Wave"]
[null,null,null,"Copyright:","Creative Commons 3.0"]
[0,null,null,"Datos:","Poblacion de África 2023 (countrymeters.info)"]
[0,null,null,"Wikipedia:","Anexo:Países de África"]

{"sheet":"Fronteras","index":1,"n_rows":68,"n_cols":10,"rows_kept":68,"cut":false,"hidden":false,"merged":[]}
["Frontera","X","Y","Ancho","Alto","Centro X","Centro Y","Distancia","Bandera","Fila"]
["Angola",147.81353759765625,198.75425720214844,51.716693878173828,64.880233764648438,{"$f":"TablaFronteras[[#This Row],[X]]+TablaFronteras[[#This Row],[Ancho]]/2","v":173.67188453674316},{"$f":"TablaFronteras[[#This Row],[Y]]+TablaFronteras[[#This Row],[Alto]]/2","v":231.19437408447266},{"$f":"IF(AND(TablaFronteras[[#This Row],[X]]<miX,miX<TablaFronteras[[#This Row],[X]]+TablaFronteras[[#This Row],[Ancho]],TablaFronteras[[#This Row],[Y]]<miY,miY<TablaFronteras[[#This Row],[Y]]+TablaFronteras[[#This Row],[Alto]]),SQRT((TablaFronteras[[#This Row],[Centro X]]-miX)^2+(TablaFronteras[[#This Row],[Centro Y]]-miY)^2),\"\")","v":""},null,{"$f":"MATCH(TablaFronteras[[#This Row],[Frontera]]&\"*\",Datos[Nombre],0)","v":1}]
["Argelia",65.152122497558594,5.9436221122741699,83.457794189453125,82.244491577148438,{"$f":"TablaFronteras[[#This Row],[X]]+TablaFronteras[[#This Row],[Ancho]]/2","v":106.88101959228516},{"$f":"TablaFronteras[[#This Row],[Y]]+TablaFronteras[[#This Row],[Alto]]/2","v":47.065867900848389},{"$f":"IF(AND(TablaFronteras[[#This Row],[X]]<miX,miX<TablaFronteras[[#This Row],[X]]+TablaFronteras[[#This Row],[Ancho]],TablaFronteras[[#This Row],[Y]]<miY,miY<TablaFronteras[[#This Row],[Y]]+TablaFronteras[[#This Row],[Alto]]),SQRT((TablaFronteras[[#This Row],[Centro X]]-miX)^2+(TablaFronteras[[#This Row],[Centro Y]]-miY)^2),\"\")","v":""},null,{"$f":"MATCH(TablaFronteras[[#This Row],[Frontera]]&\"*\",Datos[Nombre],0)","v":2}]
["Benín",102.69976043701172,119.92945098876953,12.907243728637695,29.191810607910156,{"$f":"TablaFronteras[[#This Row],[X]]+TablaFronteras[[#This Row],[Ancho]]/2","v":109.15338230133057},{"$f":"TablaFronteras[[#This Row],[Y]]+TablaFronteras[[#This Row],[Alto]]/2","v":134.52535629272461},{"$f":"IF(AND(TablaFronteras[[#This Row],[X]]<miX,miX<TablaFronteras[[#This Row],[X]]+TablaFronteras[[#This Row],[Ancho]],TablaFronteras[[#This Row],[Y]]<miY,miY<TablaFronteras[[#This Row],[Y]]+TablaFronteras[[#This Row],[Alto]]),SQRT((TablaFronteras[[#This Row],[Centro X]]-miX)^2+(TablaFronteras[[#This Row],[Centro Y]]-miY)^2),\"\")","v":""},null,{"$f":"MATCH(TablaFronteras[[#This Row],[Frontera]]&\"*\",Datos[Nombre],0)","v":3}]
["Botsuana",181.5860595703125,262.45904541015625,37.971969604492188,43.009212493896484,{"$f":"TablaFronteras[[#This Row],[X]]+TablaFronteras[[#This Row],[Ancho]]/2","v":200.57204437255859},{"$f":"TablaFronteras[[#This Row],[Y]]+TablaFronteras[[#This Row],[Alto]]/2","v":283.96365165710449},{"$f":"IF(AND(TablaFronteras[[#This Row],[X]]<miX,miX<TablaFronteras[[#This Row],[X]]+TablaFronteras[[#This Row],[Ancho]],TablaFronteras[[#This Row],[Y]]<miY,miY<TablaFronteras[[#This Row],[Y]]+TablaFronteras[[#This Row],[Alto]]),SQRT((TablaFronteras[[#This Row],[Centro X]]-miX)^2+(TablaFronteras[[#This Row],[Centro Y]]-miY)^2),\"\")","v":""},null,{"$f":"MATCH(TablaFronteras[[#This Row],[Frontera]]&\"*\",Datos[Nombre],0)","v":4}]
["Burkina Faso",76.200157165527344,106.99779510498047,33.152362823486328,27.304803848266602,{"$f":"TablaFronteras[[#This Row],[X]]+TablaFronteras[[#This Row],[Ancho]]/2","v":92.776338577270508},{"$f":"TablaFronteras[[#This Row],[Y]]+TablaFronteras[[#This Row],[Alto]]/2","v":120.65019702911377},{"$f":"IF(AND(TablaFronteras[[#This Row],[X]]<miX,miX<TablaFronteras[[#This Row],[X]]+TablaFronteras[[#This Row],[Ancho]],TablaFronteras[[#This Row],[Y]]<miY,miY<TablaFronteras[[#This Row],[Y]]+TablaFronteras[[#This Row],[Alto]]),SQRT((TablaFronteras[[#This Row],[Centro X]]-miX)^2+(TablaFronteras[[#This Row],[Centro Y]]-miY)^2),\"\")","v":""},null,{"$f":"MATCH(TablaFronteras[[#This Row],[Frontera]]&\"*\",Datos[Nombre],0)","v":5}]
["Burundi",219.90589904785156,188.77630615234375,7.6988978385925293,10.165590286254883,{"$f":"TablaFronteras[[#This Row],[X]]+TablaFronteras[[#This Row],[Ancho]]/2","v":223.75534796714783},{"$f":"TablaFronteras[[#This Row],[Y]]+TablaFronteras[[#This Row],[Alto]]/2","v":193.85910129547119},{"$f":"IF(AND(TablaFronteras[[#This Row],[X]]<miX,miX<TablaFronteras[[#This Row],[X]]+TablaFronteras[[#This Row],[Ancho]],TablaFronteras[[#This Row],[Y]]<miY,miY<TablaFronteras[[#This Row],[Y]]+TablaFronteras[[#This Row],[Alto]]),SQRT((TablaFronteras[[#This Row],[Centro X]]-miX)^2+(TablaFronteras[[#This Row],[Centro Y]]-miY)^2),\"\")","v":""},null,{"$f":"MATCH(TablaFronteras[[#This Row],[Frontera]]&\"*\",Datos[Nombre],0)","v":6}]
["Cabo Verde",4.5,101.48834991455078,7.1176376342773438,7.5776376724243164,{"$f":"TablaFronteras[[#This Row],[X]]+TablaFronteras[[#This Row],[Ancho]]/2","v":8.0588188171386719},{"$f":"TablaFronteras[[#This Row],[Y]]+TablaFronteras[[#This Row],[Alto]]/2","v":105.27716875076294},{"$f":"IF(AND(TablaFronteras[[#This Row],[X]]<miX,miX<TablaFronteras[[#This Row],[X]]+TablaFronteras[[#This Row],[Ancho]],TablaFronteras[[#This Row],[Y]]<miY,miY<TablaFronteras[[#This Row],[Y]]+TablaFronteras[[#This Row],[Alto]]),SQRT((TablaFronteras[[#This Row],[Centro X]]-miX)^2+(TablaFronteras[[#This Row],[Centro Y]]-miY)^2),\"\")","v":""},null,{"$f":"MATCH(TablaFronteras[[#This Row],[Frontera]]&\"*\",Datos[Nombre],0)","v":7}]
["Camerún",134.34574890136719,116.62755584716797,32.351261138916016,53.952205657958984,{"$f":"TablaFronteras[[#This Row],[X]]+TablaFronteras[[#This Row],[Ancho]]/2","v":150.5213794708252},{"$f":"TablaFronteras[[#This Row],[Y]]+TablaFronteras[[#This Row],[Alto]]/2","v":143.60365867614746},{"$f":"IF(AND(TablaFronteras[[#This Row],[X]]<miX,miX<TablaFronteras[[#This Row],[X]]+TablaFronteras[[#This Row],[Ancho]],TablaFronteras[[#This Row],[Y]]<miY,miY<TablaFronteras[[#This Row],[Y]]+TablaFronteras[[#This Row],[Alto]]),SQRT((TablaFronteras[[#This Row],[Centro X]]-miX)^2+(TablaFronteras[[#This Row],[Centro Y]]-miY)^2),\"\")","v":""},null,{"$f":"MATCH(TablaFronteras[[#This Row],[Frontera]]&\"*\",Datos[Nombre],0)","v":8}]
["Chad",154.99244689941406,67.055511474609375,43.910472869873047,76.187088012695313,{"$f":"TablaFronteras[[#This Row],[X]]+TablaFronteras[[#This Row],[Ancho]]/2","v":176.94768333435059},{"$f":"TablaFronteras[[#This Row],[Y]]+TablaFronteras[[#This Row],[Alto]]/2","v":105.14905548095703},{"$f":"IF(AND(TablaFronteras[[#This Row],[X]]<miX,miX<TablaFronteras[[#This Row],[X]]+TablaFronteras[[#This Row],[Ancho]],TablaFronteras[[#This Row],[Y]]<miY,miY<TablaFronteras[[#This Row],[Y]]+TablaFronteras[[#This Row],[Alto]]),SQRT((TablaFronteras[[#This Row],[Centro X]]-miX)^2+(TablaFronteras[[#This Row],[Centro Y]]-miY)^2),\"\")","v":""},null,{"$f":"MATCH(TablaFronteras[[#This Row],[Frontera]]&\"*\",Datos[Nombre],0)","v":9}]
["Comoras",281.58282470703125,235.12086486816406,3.5717322826385498,3.1933858394622803,{"$f":"TablaFronteras[[#This Row],[X]]+TablaFronteras[[#This Row],[Ancho]]/2","v":283.36869084835052},{"$f":"TablaFronteras[[#This Row],[Y]]+TablaFronteras[[#This Row],[Alto]]/2","v":236.7175577878952},{"$f":"IF(AND(TablaFronteras[[#This Row],[X]]<miX,miX<TablaFronteras[[#This Row],[X]]+TablaFronteras[[#This Row],[Ancho]],TablaFronteras[[#This Row],[Y]]<miY,miY<TablaFronteras[[#This Row],[Y]]+TablaFronteras[[#This Row],[Alto]]),SQRT((TablaFronteras[[#This Row],[Centro X]]-miX)^2+(TablaFronteras[[#This Row],[Centro Y]]-miY)^2),\"\")","v":""},null,{"$f":"MATCH(TablaFronteras[[#This Row],[Frontera]]&\"*\",Datos[Nombre],0)","v":10}]
["Costa de Marfil",63.049686431884766,127.83251953125,25.771968841552734,30.124408721923828,{"$f":"TablaFronteras[[#This Row],[X]]+TablaFronteras[[#This Row],[Ancho]]/2","v":75.935670852661133},{"$f":"TablaFronteras[[#This Row],[Y]]+TablaFronteras[[#This Row],[Alto]]/2","v":142.89472389221191},{"$f":"IF(AND(TablaFronteras[[#This Row],[X]]<miX,miX<TablaFronteras[[#This Row],[X]]+TablaFronteras[[#This Row],[Ancho]],TablaFronteras[[#This Row],[Y]]<miY,miY<TablaFronteras[[#This Row],[Y]]+TablaFronteras[[#This Row],[Alto]]),SQRT((TablaFronteras[[#This Row],[Centro X]]-miX)^2+(TablaFronteras[[#This Row],[Centro Y]]-miY)^2),\"\")","v":""},null,{"$f":"MATCH(TablaFronteras[[#This Row],[Frontera]]&\"*\",Datos[Nombre],0)","v":11}]
["Egipto",200.16409301757813,28.913148880004883,45.717166900634766,46.282913208007813,{"$f":"TablaFronteras[[#This Row],[X]]+TablaFronteras[[#This Row],[Ancho]]/2","v":223.02267646789551},{"$f":"TablaFronteras[[#This Row],[Y]]+TablaFronteras[[#This Row],[Alto]]/2","v":52.054605484008789},{"$f":"IF(AND(TablaFronteras[[#This Row],[X]]<miX,miX<TablaFronteras[[#This Row],[X]]+TablaFronteras[[#This Row],[Ancho]],TablaFronteras[[#This Row],[Y]]<miY,miY<TablaFronteras[[#This Row],[Y]]+TablaFronteras[[#This Row],[Alto]]),SQRT((TablaFronteras[[#This Row],[Centro X]]-miX)^2+(TablaFronteras[[#This Row],[Centro Y]]-miY)^2),\"\")","v":""},null,{"$f":"MATCH(TablaFronteras[[#This Row],[Frontera]]&\"*\",Datos[Nombre],0)","v":12}]
["Eritrea",246.63740539550781,94.046852111816406,26.882755279541016,26.988189697265625,{"$f":"TablaFronteras[[#This Row],[X]]+TablaFronteras[[#This Row],[Ancho]]/2","v":260.07878303527832},{"$f":"TablaFronteras[[#This Row],[Y]]+TablaFronteras[[#This Row],[Alto]]/2","v":107.54094696044922},{"$f":"IF(AND(TablaFronteras[[#This Row],[X]]<miX,miX<TablaFronteras[[#This Row],[X]]+TablaFronteras[[#This Row],[Ancho]],TablaFronteras[[#This Row],[Y]]<miY,miY<TablaFronteras[[#This Row],[Y]]+TablaFronteras[[#This Row],[Alto]]),SQRT((TablaFronteras[[#This Row],[Centro X]]-miX)^2+(TablaFronteras[[#This Row],[Centro Y]]-miY)^2),\"\")","v":""},null,{"$f":"MATCH(TablaFronteras[[#This Row],[Frontera]]&\"*\",Datos[Nombre],0)","v":13}]
["Etiopía",236.52322387695313,107.97512054443359,66.180397033691406,54.219841003417969,{"$f":"TablaFronteras[[#This Row],[X]]+TablaFronteras[[#This Row],[Ancho]]/2","v":269.61342239379883},{"$f":"TablaFronteras[[#This Row],[Y]]+TablaFronteras[[#This Row],[Alto]]/2","v":135.08504104614258},{"$f":"IF(AND(TablaFronteras[[#This Row],[X]]<miX,miX<TablaFronteras[[#This Row],[X]]+TablaFronteras[[#This Row],[Ancho]],TablaFronteras[[#This Row],[Y]]<miY,miY<TablaFronteras[[#This Row],[Y]]+TablaFronteras[[#This Row],[Alto]]),SQRT((TablaFronteras[[#This Row],[Centro X]]-miX)^2+(TablaFronteras[[#This Row],[Centro Y]]-miY)^2),\"\")","v":""},null,{"$f":"MATCH(TablaFronteras[[#This Row],[Frontera]]&\"*\",Datos[Nombre],0)","v":14}]
["Gabón",135.28480529785156,167.28669738769531,24.327007293701172,29.23866081237793,{"$f":"TablaFronteras[[#This Row],[X]]+TablaFronteras[[#This Row],[Ancho]]/2","v":147.44830894470215},{"$f":"TablaFronteras[[#This Row],[Y]]+TablaFronteras[[#This Row],[Alto]]/2","v":181.90602779388428},{"$f":"IF(AND(TablaFronteras[[#This Row],[X]]<miX,miX<TablaFronteras[[#This Row],[X]]+TablaFronteras[[#This Row],[Ancho]],TablaFronteras[[#This Row],[Y]]<miY,miY<TablaFronteras[[#This Row],[Y]]+TablaFronteras[[#This Row],[Alto]]),SQRT((TablaFronteras[[#This Row],[Centro X]]-miX)^2+(TablaFronteras[[#This Row],[Centro Y]]-miY)^2),\"\")","v":""},null,{"$f":"MATCH(TablaFronteras[[#This Row],[Frontera]]&\"*\",Datos[Nombre],0)","v":15}]
["Gambia",28.201337814331055,113.07488250732422,12.599133491516113,3.651653528213501,{"$f":"TablaFronteras[[#This Row],[X]]+TablaFronteras[[#This Row],[Ancho]]/2","v":34.500904560089111},{"$f":"TablaFronteras[[#This Row],[Y]]+TablaFronteras[[#This Row],[Alto]]/2","v":114.90070927143097},{"$f":"IF(AND(TablaFronteras[[#This Row],[X]]<miX,miX<TablaFronteras[[#This Row],[X]]+TablaFronteras[[#This Row],[Ancho]],TablaFronteras[[#This Row],[Y]]<miY,miY<TablaFronteras[[#This Row],[Y]]+TablaFronteras[[#This Row],[Alto]]),SQRT((TablaFronteras[[#This Row],[Centro X]]-miX)^2+(TablaFronteras[[#This Row],[Centro Y]]-miY)^2),\"\")","v":""},null,{"$f":"MATCH(TablaFronteras[[#This Row],[Frontera]]&\"*\",Datos[Nombre],0)","v":16}]
["Ghana",85.737556457519531,125.98511505126953,18.563858032226563,30.193149566650391,{"$f":"TablaFronteras[[#This Row],[X]]+TablaFronteras[[#This Row],[Ancho]]/2","v":95.019485473632813},{"$f":"TablaFronteras[[#This Row],[Y]]+TablaFronteras[[#This Row],[Alto]]/2","v":141.08168983459473},{"$f":"IF(AND(TablaFronteras[[#This Row],[X]]<miX,miX<TablaFronteras[[#This Row],[X]]+TablaFronteras[[#This Row],[Ancho]],TablaFronteras[[#This Row],[Y]]<miY,miY<TablaFronteras[[#This Row],[Y]]+TablaFronteras[[#This Row],[Alto]]),SQRT((TablaFronteras[[#This Row],[Centro X]]-miX)^2+(TablaFronteras[[#This Row],[Centro Y]]-miY)^2),\"\")","v":""},null,{"$f":"MATCH(TablaFronteras[[#This Row],[Frontera]]&\"*\",Datos[Nombre],0)","v":17}]
["Guinea",35.312046051025391,118.58023834228516,31.865432739257813,26.254961013793945,{"$f":"TablaFronteras[[#This Row],[X]]+TablaFronteras[[#This Row],[Ancho]]/2","v":51.244762420654297},{"$f":"TablaFronteras[[#This Row],[Y]]+TablaFronteras[[#This Row],[Alto]]/2","v":131.70771884918213},{"$f":"IF(AND(TablaFronteras[[#This Row],[X]]<miX,miX<TablaFronteras[[#This Row],[X]]+TablaFronteras[[#This Row],[Ancho]],TablaFronteras[[#This Row],[Y]]<miY,miY<TablaFronteras[[#This Row],[Y]]+TablaFronteras[[#This Row],[Alto]]),SQRT((TablaFronteras[[#This Row],[Centro X]]-miX)^2+(TablaFronteras[[#This Row],[Centro Y]]-miY)^2),\"\")","v":""},null,{"$f":"MATCH(TablaFronteras[[#This Row],[Frontera]]&\"*\",Datos[Nombre],0)","v":18}]
["Guinea Ecuatorial",133.78181457519531,160.50567626953125,12.342440605163574,12.849921226501465,{"$f":"TablaFronteras[[#This Row],[X]]+TablaFronteras[[#This Row],[Ancho]]/2","v":139.9530348777771},{"$f":"TablaFronteras[[#This Row],[Y]]+TablaFronteras[[#This Row],[Alto]]/2","v":166.93063688278198},{"$f":"IF(AND(TablaFronteras[[#This Row],[X]]<miX,miX<TablaFronteras[[#This Row],[X]]+TablaFronteras[[#This Row],[Ancho]],TablaFronteras[[#This Row],[Y]]<miY,miY<TablaFronteras[[#This Row],[Y]]+TablaFronteras[[#This Row],[Alto]]),SQRT((TablaFronteras[[#This Row],[Centro X]]-miX)^2+(TablaFronteras[[#This Row],[Centro Y]]-miY)^2),\"\")","v":""},null,{"$f":"MATCH(TablaFronteras[[#This Row],[Frontera]]&\"*\",Datos[Nombre],0)","v":19}]
["Guinea-Bissau",28.513544082641602,118.55960845947266,12.789212226867676,8.3319683074951172,{"$f":"TablaFronteras[[#This Row],[X]]+TablaFronteras[[#This Row],[Ancho]]/2","v":34.908150196075439},{"$f":"TablaFronteras[[#This Row],[Y]]+TablaFronteras[[#This Row],[Alto]]/2","v":122.72559261322021},{"$f":"IF(AND(TablaFronteras[[#This Row],[X]]<miX,miX<TablaFronteras[[#This Row],[X]]+TablaFronteras[[#This Row],[Ancho]],TablaFronteras[[#This Row],[Y]]<miY,miY<TablaFronteras[[#This Row],[Y]]+TablaFronteras[[#This Row],[Alto]]),SQRT((TablaFronteras[[#This Row],[Centro X]]-miX)^2+(TablaFronteras[[#This Row],[Centro Y]]-miY)^2),\"\")","v":""},null,{"$f":"MATCH(TablaFronteras[[#This Row],[Frontera]]&\"*\",Datos[Nombre],0)","v":20}]
["Kenia",240.79684448242188,156.7147216796875,33.355670928955078,43.363227844238281,{"$f":"TablaFronteras[[#This Row],[X]]+TablaFronteras[[#This Row],[Ancho]]/2","v":257.47467994689941},{"$f":"TablaFronteras[[#This Row],[Y]]+TablaFronteras[[#This Row],[Alto]]/2","v":178.39633560180664},{"$f":"IF(AND(TablaFronteras[[#This Row],[X]]<miX,miX<TablaFronteras[[#This Row],[X]]+TablaFronteras[[#This Row],[Ancho]],TablaFronteras[[#This Row],[Y]]<miY,miY<TablaFronteras[[#This Row],[Y]]+TablaFronteras[[#This Row],[Alto]]),SQRT((TablaFronteras[[#This Row],[Centro X]]-miX)^2+(TablaFronteras[[#This Row],[Centro Y]]-miY)^2),\"\")","v":""},null,{"$f":"MATCH(TablaFronteras[[#This Row],[Frontera]]&\"*\",Datos[Nombre],0)","v":21}]
["Lesoto",209.48204040527344,313.53512573242188,9.1321258544921875,9.5501575469970703,{"$f":"TablaFronteras[[#This Row],[X]]+TablaFronteras[[#This Row],[Ancho]]/2","v":214.04810333251953},{"$f":"TablaFronteras[[#This Row],[Y]]+TablaFronteras[[#This Row],[Alto]]/2","v":318.31020450592041},{"$f":"IF(AND(TablaFronteras[[#This Row],[X]]<miX,miX<TablaFronteras[[#This Row],[X]]+TablaFronteras[[#This Row],[Ancho]],TablaFronteras[[#This Row],[Y]]<miY,miY<TablaFronteras[[#This Row],[Y]]+TablaFronteras[[#This Row],[Alto]]),SQRT((TablaFronteras[[#This Row],[Centro X]]-miX)^2+(TablaFronteras[[#This Row],[Centro Y]]-miY)^2),\"\")","v":""},null,{"$f":"MATCH(TablaFronteras[[#This Row],[Frontera]]&\"*\",Datos[Nombre],0)","v":22}]
["Liberia",49.991497039794922,138.41543579101563,18.160629272460938,19.500078201293945,{"$f":"TablaFronteras[[#This Row],[X]]+TablaFronteras[[#This Row],[Ancho]]/2","v":59.071811676025391},{"$f":"TablaFronteras[[#This Row],[Y]]+TablaFronteras[[#This Row],[Alto]]/2","v":148.1654748916626},{"$f":"IF(AND(TablaFronteras[[#This Row],[X]]<miX,miX<TablaFronteras[[#This Row],[X]]+TablaFronteras[[#This Row],[Ancho]],TablaFronteras[[#This Row],[Y]]<miY,miY<TablaFronteras[[#This Row],[Y]]+TablaFronteras[[#This Row],[Alto]]),SQRT((TablaFronteras[[#This Row],[Centro X]]-miX)^2+(TablaFronteras[[#This Row],[Centro Y]]-miY)^2),\"\")","v":""},null,{"$f":"MATCH(TablaFronteras[[#This Row],[Frontera]]&\"*\",Datos[Nombre],0)","v":23}]
["Libia",137.90093994140625,24.6419677734375,64.743621826171875,61.137950897216797,{"$f":"TablaFronteras[[#This Row],[X]]+TablaFronteras[[#This Row],[Ancho]]/2","v":170.27275085449219},{"$f":"TablaFronteras[[#This Row],[Y]]+TablaFronteras[[#This Row],[Alto]]/2","v":55.210943222045898},{"$f":"IF(AND(TablaFronteras[[#This Row],[X]]<miX,miX<TablaFronteras[[#This Row],[X]]+TablaFronteras[[#This Row],[Ancho]],TablaFronteras[[#This Row],[Y]]<miY,miY<TablaFronteras[[#This Row],[Y]]+TablaFronteras[[#This Row],[Alto]]),SQRT((TablaFronteras[[#This Row],[Centro X]]-miX)^2+(TablaFronteras[[#This Row],[Centro Y]]-miY)^2),\"\")","v":""},null,{"$f":"MATCH(TablaFronteras[[#This Row],[Frontera]]&\"*\",Datos[Nombre],0)","v":24}]
["Madagascar",276.74078369140625,234.73582458496094,35.025905609130859,64.823936462402344,{"$f":"TablaFronteras[[#This Row],[X]]+TablaFronteras[[#This Row],[Ancho]]/2","v":294.25373649597168},{"$f":"TablaFronteras[[#This Row],[Y]]+TablaFronteras[[#This Row],[Alto]]/2","v":267.14779281616211},{"$f":"IF(AND(TablaFronteras[[#This Row],[X]]<miX,miX<TablaFronteras[[#This Row],[X]]+TablaFronteras[[#This Row],[Ancho]],TablaFronteras[[#This Row],[Y]]<miY,miY<TablaFronteras[[#This Row],[Y]]+TablaFronteras[[#This Row],[Alto]]),SQRT((TablaFronteras[[#This Row],[Centro X]]-miX)^2+(TablaFronteras[[#This Row],[Centro Y]]-miY)^2),\"\")","v":""},null,{"$f":"MATCH(TablaFronteras[[#This Row],[Frontera]]&\"*\",Datos[Nombre],0)","v":25}]
["Malaui",234.62298583984375,222.23953247070313,13.232834815979004,37.238582611083984,{"$f":"TablaFronteras[[#This Row],[X]]+TablaFronteras[[#This Row],[Ancho]]/2","v":241.23940324783325},{"$f":"TablaFronteras[[#This Row],[Y]]+TablaFronteras[[#This Row],[Alto]]/2","v":240.85882377624512},{"$f":"IF(AND(TablaFronteras[[#This Row],[X]]<miX,miX<TablaFronteras[[#This Row],[X]]+TablaFronteras[[#This Row],[Ancho]],TablaFronteras[[#This Row],[Y]]<miY,miY<TablaFronteras[[#This Row],[Y]]+TablaFronteras[[#This Row],[Alto]]),SQRT((TablaFronteras[[#This Row],[Centro X]]-miX)^2+(TablaFronteras[[#This Row],[Centro Y]]-miY)^2),\"\")","v":""},null,{"$f":"MATCH(TablaFronteras[[#This Row],[Frontera]]&\"*\",Datos[Nombre],0)","v":26}]
["Malí",46.886852264404297,60.416141510009766,69.288505554199219,70.194564819335938,{"$f":"TablaFronteras[[#This Row],[X]]+TablaFronteras[[#This Row],[Ancho]]/2","v":81.531105041503906},{"$f":"TablaFronteras[[#This Row],[Y]]+TablaFronteras[[#This Row],[Alto]]/2","v":95.513423919677734},{"$f":"IF(AND(TablaFronteras[[#This Row],[X]]<miX,miX<TablaFronteras[[#This Row],[X]]+TablaFronteras[[#This Row],[Ancho]],TablaFronteras[[#This Row],[Y]]<miY,miY<TablaFronteras[[#This Row],[Y]]+TablaFronteras[[#This Row],[Alto]]),SQRT((TablaFronteras[[#This Row],[Centro X]]-miX)^2+(TablaFronteras[[#This Row],[Centro Y]]-miY)^2),\"\")","v":""},null,{"$f":"MATCH(TablaFronteras[[#This Row],[Frontera]]&\"*\",Datos[Nombre],0)","v":27}]
["Marruecos",28.285511016845703,11.626141548156738,68.6031494140625,68.114959716796875,{"$f":"TablaFronteras[[#This Row],[X]]+TablaFronteras[[#This Row],[Ancho]]/2","v":62.587085723876953},{"$f":"TablaFronteras[[#This Row],[Y]]+TablaFronteras[[#This Row],[Alto]]/2","v":45.683621406555176},{"$f":"IF(AND(TablaFronteras[[#This Row],[X]]<miX,miX<TablaFronteras[[#This Row],[X]]+TablaFronteras[[#This Row],[Ancho]],TablaFronteras[[#This Row],[Y]]<miY,miY<TablaFronteras[[#This Row],[Y]]+TablaFronteras[[#This Row],[Alto]]),SQRT((TablaFronteras[[#This Row],[Centro X]]-miX)^2+(TablaFronteras[[#This Row],[Centro Y]]-miY)^2),\"\")","v":""},null,{"$f":"MATCH(TablaFronteras[[#This Row],[Frontera]]&\"*\",Datos[Nombre],0)","v":28}]
["Mauricio",338.59103393554688,274.41598510742188,1.1054331064224243,1.6381102800369263,{"$f":"TablaFronteras[[#This Row],[X]]+TablaFronteras[[#This Row],[Ancho]]/2","v":339.14375048875809},{"$f":"TablaFronteras[[#This Row],[Y]]+TablaFronteras[[#This Row],[Alto]]/2","v":275.23504024744034},{"$f":"IF(AND(TablaFronteras[[#This Row],[X]]<miX,miX<TablaFronteras[[#This Row],[X]]+TablaFronteras[[#This Row],[Ancho]],TablaFronteras[[#This Row],[Y]]<miY,miY<TablaFronteras[[#This Row],[Y]]+TablaFronteras[[#This Row],[Alto]]),SQRT((TablaFronteras[[#This Row],[Centro X]]-miX)^2+(TablaFronteras[[#This Row],[Centro Y]]-miY)^2),\"\")","v":""},null,{"$f":"MATCH(TablaFronteras[[#This Row],[Frontera]]&\"*\",Datos[Nombre],0)","v":29}]
["Mauritania",28.453306198120117,48.461418151855469,52.133937835693359,60.094566345214844,{"$f":"TablaFronteras[[#This Row],[X]]+TablaFronteras[[#This Row],[Ancho]]/2","v":54.520275115966797},{"$f":"TablaFronteras[[#This Row],[Y]]+TablaFronteras[[#This Row],[Alto]]/2","v":78.508701324462891},{"$f":"IF(AND(TablaFronteras[[#This Row],[X]]<miX,miX<TablaFronteras[[#This Row],[X]]+TablaFronteras[[#This Row],[Ancho]],TablaFronteras[[#This Row],[Y]]<miY,miY<TablaFronteras[[#This Row],[Y]]+TablaFronteras[[#This Row],[Alto]]),SQRT((TablaFronteras[[#This Row],[Centro X]]-miX)^2+(TablaFronteras[[#This Row],[Centro Y]]-miY)^2),\"\")","v":""},null,{"$f":"MATCH(TablaFronteras[[#This Row],[Frontera]]&\"*\",Datos[Nombre],0)","v":30}]
["Mozambique",224.13307189941406,227.72331237792969,44.377006530761719,77.717636108398438,{"$f":"TablaFronteras[[#This Row],[X]]+TablaFronteras[[#This Row],[Ancho]]/2","v":246.32157516479492},{"$f":"TablaFronteras[[#This Row],[Y]]+TablaFronteras[[#This Row],[Alto]]/2","v":266.58213043212891},{"$f":"IF(AND(TablaFronteras[[#This Row],[X]]<miX,miX<TablaFronteras[[#This Row],[X]]+TablaFronteras[[#This Row],[Ancho]],TablaFronteras[[#This Row],[Y]]<miY,miY<TablaFronteras[[#This Row],[Y]]+TablaFronteras[[#This Row],[Alto]]),SQRT((TablaFronteras[[#This Row],[Centro X]]-miX)^2+(TablaFronteras[[#This Row],[Centro Y]]-miY)^2),\"\")","v":""},null,{"$f":"MATCH(TablaFronteras[[#This Row],[Frontera]]&\"*\",Datos[Nombre],0)","v":31}]
["Namibia",147.74685668945313,258.60000610351563,56.073150634765625,56.513858795166016,{"$f":"TablaFronteras[[#This Row],[X]]+TablaFronteras[[#This Row],[Ancho]]/2","v":175.78343200683594},{"$f":"TablaFronteras[[#This Row],[Y]]+TablaFronteras[[#This Row],[Alto]]/2","v":286.85693550109863},{"$f":"IF(AND(TablaFronteras[[#This Row],[X]]<miX,miX<TablaFronteras[[#This Row],[X]]+TablaFronteras[[#This Row],[Ancho]],TablaFronteras[[#This Row],[Y]]<miY,miY<TablaFronteras[[#This Row],[Y]]+TablaFronteras[[#This Row],[Alto]]),SQRT((TablaFronteras[[#This Row],[Centro X]]-miX)^2+(TablaFronteras[[#This Row],[Centro Y]]-miY)^2),\"\")","v":""},null,{"$f":"MATCH(TablaFronteras[[#This Row],[Frontera]]&\"*\",Datos[Nombre],0)","v":32}]
["Níger",99.805198669433594,66.717796325683594,64.911972045898438,56.536140441894531,{"$f":"TablaFronteras[[#This Row],[X]]+TablaFronteras[[#This Row],[Ancho]]/2","v":132.26118469238281},{"$f":"TablaFronteras[[#This Row],[Y]]+TablaFronteras[[#This Row],[Alto]]/2","v":94.985866546630859},{"$f":"IF(AND(TablaFronteras[[#This Row],[X]]<miX,miX<TablaFronteras[[#This Row],[X]]+TablaFronteras[[#This Row],[Ancho]],TablaFronteras[[#This Row],[Y]]<miY,miY<TablaFronteras[[#This Row],[Y]]+TablaFronteras[[#This Row],[Alto]]),SQRT((TablaFronteras[[#This Row],[Centro X]]-miX)^2+(TablaFronteras[[#This Row],[Centro Y]]-miY)^2),\"\")","v":""},null,{"$f":"MATCH(TablaFronteras[[#This Row],[Frontera]]&\"*\",Datos[Nombre],0)","v":34}]
["Nigeria",110.56936645507813,112.72362518310547,49.518032073974609,45.668190002441406,{"$f":"TablaFronteras[[#This Row],[X]]+TablaFronteras[[#This Row],[Ancho]]/2","v":135.32838249206543},{"$f":"TablaFronteras[[#This Row],[Y]]+TablaFronteras[[#This Row],[Alto]]/2","v":135.55772018432617},{"$f":"IF(AND(TablaFronteras[[#This Row],[X]]<miX,miX<TablaFronteras[[#This Row],[X]]+TablaFronteras[[#This Row],[Ancho]],TablaFronteras[[#This Row],[Y]]<miY,miY<TablaFronteras[[#This Row],[Y]]+TablaFronteras[[#This Row],[Alto]]),SQRT((TablaFronteras[[#This Row],[Centro X]]-miX)^2+(TablaFronteras[[#This Row],[Centro Y]]-miY)^2),\"\")","v":""},null,{"$f":"MATCH(TablaFronteras[[#This Row],[Frontera]]&\"*\",Datos[Nombre],0)","v":33}]
["República Centroafricana",159.09819030761719,126.56983947753906,54.952915191650391,41.313148498535156,{"$f":"TablaFronteras[[#This Row],[X]]+TablaFronteras[[#This Row],[Ancho]]/2","v":186.57464790344238},{"$f":"TablaFronteras[[#This Row],[Y]]+TablaFronteras[[#This Row],[Alto]]/2","v":147.22641372680664},{"$f":"IF(AND(TablaFronteras[[#This Row],[X]]<miX,miX<TablaFronteras[[#This Row],[X]]+TablaFronteras[[#This Row],[Ancho]],TablaFronteras[[#This Row],[Y]]<miY,miY<TablaFronteras[[#This Row],[Y]]+TablaFronteras[[#This Row],[Alto]]),SQRT((TablaFronteras[[#This Row],[Centro X]]-miX)^2+(TablaFronteras[[#This Row],[Centro Y]]-miY)^2),\"\")","v":""},null,{"$f":"MATCH(TablaFronteras[[#This Row],[Frontera]]&\"*\",Datos[Nombre],0)","v":35}]
["República del Congo",145.31306457519531,161.3651123046875,31.642362594604492,40.741180419921875,{"$f":"TablaFronteras[[#This Row],[X]]+TablaFronteras[[#This Row],[Ancho]]/2","v":161.13424587249756},{"$f":"TablaFronteras[[#This Row],[Y]]+TablaFronteras[[#This Row],[Alto]]/2","v":181.73570251464844},{"$f":"IF(AND(TablaFronteras[[#This Row],[X]]<miX,miX<TablaFronteras[[#This Row],[X]]+TablaFronteras[[#This Row],[Ancho]],TablaFronteras[[#This Row],[Y]]<miY,miY<TablaFronteras[[#This Row],[Y]]+TablaFronteras[[#This Row],[Alto]]),SQRT((TablaFronteras[[#This Row],[Centro X]]-miX)^2+(TablaFronteras[[#This Row],[Centro Y]]-miY)^2),\"\")","v":""},null,{"$f":"MATCH(TablaFronteras[[#This Row],[Frontera]]&\"*\",Datos[Nombre],0)","v":37}]
["República Democrática del Congo",149.82723999023438,152.33590698242188,79.677009582519531,88.439605712890625,{"$f":"TablaFronteras[[#This Row],[X]]+TablaFronteras[[#This Row],[Ancho]]/2","v":189.66574478149414},{"$f":"TablaFronteras[[#This Row],[Y]]+TablaFronteras[[#This Row],[Alto]]/2","v":196.55570983886719},{"$f":"IF(AND(TablaFronteras[[#This Row],[X]]<miX,miX<TablaFronteras[[#This Row],[X]]+TablaFronteras[[#This Row],[Ancho]],TablaFronteras[[#This Row],[Y]]<miY,miY<TablaFronteras[[#This Row],[Y]]+TablaFronteras[[#This Row],[Alto]]),SQRT((TablaFronteras[[#This Row],[Centro X]]-miX)^2+(TablaFronteras[[#This Row],[Centro Y]]-miY)^2),\"\")","v":""},null,{"$f":"MATCH(TablaFronteras[[#This Row],[Frontera]]&\"*\",Datos[Nombre],0)","v":36}]
["Ruanda",219.27787780761719,183.15504455566406,8.4448032379150391,7.994330883026123,{"$f":"TablaFronteras[[#This Row],[X]]+TablaFronteras[[#This Row],[Ancho]]/2","v":223.50027942657471},{"$f":"TablaFronteras[[#This Row],[Y]]+TablaFronteras[[#This Row],[Alto]]/2","v":187.15220999717712},{"$f":"IF(AND(TablaFronteras[[#This Row],[X]]<miX,miX<TablaFronteras[[#This Row],[X]]+TablaFronteras[[#This Row],[Ancho]],TablaFronteras[[#This Row],[Y]]<miY,miY<TablaFronteras[[#This Row],[Y]]+TablaFronteras[[#This Row],[Alto]]),SQRT((TablaFronteras[[#This Row],[Centro X]]-miX)^2+(TablaFronteras[[#This Row],[Centro Y]]-miY)^2),\"\")","v":""},null,{"$f":"MATCH(TablaFronteras[[#This Row],[Frontera]]&\"*\",Datos[Nombre],0)","v":38}]
["Santo Tomé y Príncipe",127.66212463378906,177.72219848632813,1.1054331064224243,1.6381102800369263,{"$f":"TablaFronteras[[#This Row],[X]]+TablaFronteras[[#This Row],[Ancho]]/2","v":128.21484118700027},{"$f":"TablaFronteras[[#This Row],[Y]]+TablaFronteras[[#This Row],[Alto]]/2","v":178.54125362634659},{"$f":"IF(AND(TablaFronteras[[#This Row],[X]]<miX,miX<TablaFronteras[[#This Row],[X]]+TablaFronteras[[#This Row],[Ancho]],TablaFronteras[[#This Row],[Y]]<miY,miY<TablaFronteras[[#This Row],[Y]]+TablaFronteras[[#This Row],[Alto]]),SQRT((TablaFronteras[[#This Row],[Centro X]]-miX)^2+(TablaFronteras[[#This Row],[Centro Y]]-miY)^2),\"\")","v":""},null,{"$f":"MATCH(TablaFronteras[[#This Row],[Frontera]]&\"*\",Datos[Nombre],0)","v":39}]
["Sáhara Occidental",28.285509999999999,48.558349999999997,36.05386,31.254169999999998,{"$f":"TablaFronteras[[#This Row],[X]]+TablaFronteras[[#This Row],[Ancho]]/2","v":46.312439999999995},{"$f":"TablaFronteras[[#This Row],[Y]]+TablaFronteras[[#This Row],[Alto]]/2","v":64.185434999999998},{"$f":"IF(AND(TablaFronteras[[#This Row],[X]]<miX,miX<TablaFronteras[[#This Row],[X]]+TablaFronteras[[#This Row],[Ancho]],TablaFronteras[[#This Row],[Y]]<miY,miY<TablaFronteras[[#This Row],[Y]]+TablaFronteras[[#This Row],[Alto]]),SQRT((TablaFronteras[[#This Row],[Centro X]]-miX)^2+(TablaFronteras[[#This Row],[Centro Y]]-miY)^2),\"\")","v":""},null,{"$f":"MATCH(TablaFronteras[[#This Row],[Frontera]]&\"*\",Datos[Nombre],0)","v":49}]
["Senegal",25.602283477783203,99.274803161621094,25.339290618896484,21.024881362915039,{"$f":"TablaFronteras[[#This Row],[X]]+TablaFronteras[[#This Row],[Ancho]]/2","v":38.271928787231445},{"$f":"TablaFronteras[[#This Row],[Y]]+TablaFronteras[[#This Row],[Alto]]/2","v":109.78724384307861},{"$f":"IF(AND(TablaFronteras[[#This Row],[X]]<miX,miX<TablaFronteras[[#This Row],[X]]+TablaFronteras[[#This Row],[Ancho]],TablaFronteras[[#This Row],[Y]]<miY,miY<TablaFronteras[[#This Row],[Y]]+TablaFronteras[[#This Row],[Alto]]),SQRT((TablaFronteras[[#This Row],[Centro X]]-miX)^2+(TablaFronteras[[#This Row],[Centro Y]]-miY)^2),\"\")","v":""},null,{"$f":"MATCH(TablaFronteras[[#This Row],[Frontera]]&\"*\",Datos[Nombre],0)","v":40}]
["Sierra Leona",42.525039672851563,131.33969116210938,12.71015739440918,14.395590782165527,{"$f":"TablaFronteras[[#This Row],[X]]+TablaFronteras[[#This Row],[Ancho]]/2","v":48.880118370056152},{"$f":"TablaFronteras[[#This Row],[Y]]+TablaFronteras[[#This Row],[Alto]]/2","v":138.53748655319214},{"$f":"IF(AND(TablaFronteras[[#This Row],[X]]<miX,miX<TablaFronteras[[#This Row],[X]]+TablaFronteras[[#This Row],[Ancho]],TablaFronteras[[#This Row],[Y]]<miY,miY<TablaFronteras[[#This Row],[Y]]+TablaFronteras[[#This Row],[Alto]]),SQRT((TablaFronteras[[#This Row],[Centro X]]-miX)^2+(TablaFronteras[[#This Row],[Centro Y]]-miY)^2),\"\")","v":""},null,{"$f":"MATCH(TablaFronteras[[#This Row],[Frontera]]&\"*\",Datos[Nombre],0)","v":42}]
["Somalia",266.86376953125,122.46810913085938,45.495510101318359,64.124565124511719,{"$f":"TablaFronteras[[#This Row],[X]]+TablaFronteras[[#This Row],[Ancho]]/2","v":289.61152458190918},{"$f":"TablaFronteras[[#This Row],[Y]]+TablaFronteras[[#This Row],[Alto]]/2","v":154.53039169311523},{"$f":"IF(AND(TablaFronteras[[#This Row],[X]]<miX,miX<TablaFronteras[[#This Row],[X]]+TablaFronteras[[#This Row],[Ancho]],TablaFronteras[[#This Row],[Y]]<miY,miY<TablaFronteras[[#This Row],[Y]]+TablaFronteras[[#This Row],[Alto]]),SQRT((TablaFronteras[[#This Row],[Centro X]]-miX)^2+(TablaFronteras[[#This Row],[Centro Y]]-miY)^2),\"\")","v":""},null,{"$f":"MATCH(TablaFronteras[[#This Row],[Frontera]]&\"*\",Datos[Nombre],0)","v":43}]
["Suazilandia",224.72055053710938,300.85324096679688,5.8164567947387695,6.4951968193054199,{"$f":"TablaFronteras[[#This Row],[X]]+TablaFronteras[[#This Row],[Ancho]]/2","v":227.62877893447876},{"$f":"TablaFronteras[[#This Row],[Y]]+TablaFronteras[[#This Row],[Alto]]/2","v":304.10083937644958},{"$f":"IF(AND(TablaFronteras[[#This Row],[X]]<miX,miX<TablaFronteras[[#This Row],[X]]+TablaFronteras[[#This Row],[Ancho]],TablaFronteras[[#This Row],[Y]]<miY,miY<TablaFronteras[[#This Row],[Y]]+TablaFronteras[[#This Row],[Alto]]),SQRT((TablaFronteras[[#This Row],[Centro X]]-miX)^2+(TablaFronteras[[#This Row],[Centro Y]]-miY)^2),\"\")","v":""},null,{"$f":"MATCH(TablaFronteras[[#This Row],[Frontera]]&\"*\",Datos[Nombre],0)","v":45}]
["Sudáfrica",166.92897033691406,283.48699951171875,66.116378784179688,58.933700561523438,{"$f":"TablaFronteras[[#This Row],[X]]+TablaFronteras[[#This Row],[Ancho]]/2","v":199.98715972900391},{"$f":"TablaFronteras[[#This Row],[Y]]+TablaFronteras[[#This Row],[Alto]]/2","v":312.95384979248047},{"$f":"IF(AND(TablaFronteras[[#This Row],[X]]<miX,miX<TablaFronteras[[#This Row],[X]]+TablaFronteras[[#This Row],[Ancho]],TablaFronteras[[#This Row],[Y]]<miY,miY<TablaFronteras[[#This Row],[Y]]+TablaFronteras[[#This Row],[Alto]]),SQRT((TablaFronteras[[#This Row],[Centro X]]-miX)^2+(TablaFronteras[[#This Row],[Centro Y]]-miY)^2),\"\")","v":""},null,{"$f":"MATCH(TablaFronteras[[#This Row],[Frontera]]&\"*\",Datos[Nombre],0)","v":46}]
["Sudán",190.01826477050781,68.389373779296875,68.550003051757813,66.204879760742188,{"$f":"TablaFronteras[[#This Row],[X]]+TablaFronteras[[#This Row],[Ancho]]/2","v":224.29326629638672},{"$f":"TablaFronteras[[#This Row],[Y]]+TablaFronteras[[#This Row],[Alto]]/2","v":101.49181365966797},{"$f":"IF(AND(TablaFronteras[[#This Row],[X]]<miX,miX<TablaFronteras[[#This Row],[X]]+TablaFronteras[[#This Row],[Ancho]],TablaFronteras[[#This Row],[Y]]<miY,miY<TablaFronteras[[#This Row],[Y]]+TablaFronteras[[#This Row],[Alto]]),SQRT((TablaFronteras[[#This Row],[Centro X]]-miX)^2+(TablaFronteras[[#This Row],[Centro Y]]-miY)^2),\"\")","v":""},null,{"$f":"MATCH(TablaFronteras[[#This Row],[Frontera]]&\"*\",Datos[Nombre],0)","v":47}]
["Sudán del Sur",197.09346008300781,120.25070953369141,51.905746459960938,41.517795562744141,{"$f":"TablaFronteras[[#This Row],[X]]+TablaFronteras[[#This Row],[Ancho]]/2","v":223.04633331298828},{"$f":"TablaFronteras[[#This Row],[Y]]+TablaFronteras[[#This Row],[Alto]]/2","v":141.00960731506348},{"$f":"IF(AND(TablaFronteras[[#This Row],[X]]<miX,miX<TablaFronteras[[#This Row],[X]]+TablaFronteras[[#This Row],[Ancho]],TablaFronteras[[#This Row],[Y]]<miY,miY<TablaFronteras[[#This Row],[Y]]+TablaFronteras[[#This Row],[Alto]]),SQRT((TablaFronteras[[#This Row],[Centro X]]-miX)^2+(TablaFronteras[[#This Row],[Centro Y]]-miY)^2),\"\")","v":""},null,{"$f":"MATCH(TablaFronteras[[#This Row],[Frontera]]&\"*\",Datos[Nombre],0)","v":48}]
["Tanzania",222.26393127441406,182.77818298339844,45.076221466064453,50.820316314697266,{"$f":"TablaFronteras[[#This Row],[X]]+TablaFronteras[[#This Row],[Ancho]]/2","v":244.80204200744629},{"$f":"TablaFronteras[[#This Row],[Y]]+TablaFronteras[[#This Row],[Alto]]/2","v":208.18834114074707},{"$f":"IF(AND(TablaFronteras[[#This Row],[X]]<miX,miX<TablaFronteras[[#This Row],[X]]+TablaFronteras[[#This Row],[Ancho]],TablaFronteras[[#This Row],[Y]]<miY,miY<TablaFronteras[[#This Row],[Y]]+TablaFronteras[[#This Row],[Alto]]),SQRT((TablaFronteras[[#This Row],[Centro X]]-miX)^2+(TablaFronteras[[#This Row],[Centro Y]]-miY)^2),\"\")","v":""},null,{"$f":"MATCH(TablaFronteras[[#This Row],[Frontera]]&\"*\",Datos[Nombre],0)","v":50}]
["Togo",98.770790100097656,125.92646026611328,8.0844879150390625,23.752834320068359,{"$f":"TablaFronteras[[#This Row],[X]]+TablaFronteras[[#This Row],[Ancho]]/2","v":102.81303405761719},{"$f":"TablaFronteras[[#This Row],[Y]]+TablaFronteras[[#This Row],[Alto]]/2","v":137.80287742614746},{"$f":"IF(AND(TablaFronteras[[#This Row],[X]]<miX,miX<TablaFronteras[[#This Row],[X]]+TablaFronteras[[#This Row],[Ancho]],TablaFronteras[[#This Row],[Y]]<miY,miY<TablaFronteras[[#This Row],[Y]]+TablaFronteras[[#This Row],[Alto]]),SQRT((TablaFronteras[[#This Row],[Centro X]]-miX)^2+(TablaFronteras[[#This Row],[Centro Y]]-miY)^2),\"\")","v":""},null,{"$f":"MATCH(TablaFronteras[[#This Row],[Frontera]]&\"*\",Datos[Nombre],0)","v":51}]
["Túnez",129.97480773925781,8.0100002288818359,16.309606552124023,29.573936462402344,{"$f":"TablaFronteras[[#This Row],[X]]+TablaFronteras[[#This Row],[Ancho]]/2","v":138.12961101531982},{"$f":"TablaFronteras[[#This Row],[Y]]+TablaFronteras[[#This Row],[Alto]]/2","v":22.796968460083008},{"$f":"IF(AND(TablaFronteras[[#This Row],[X]]<miX,miX<TablaFronteras[[#This Row],[X]]+TablaFronteras[[#This Row],[Ancho]],TablaFronteras[[#This Row],[Y]]<miY,miY<TablaFronteras[[#This Row],[Y]]+TablaFronteras[[#This Row],[Alto]]),SQRT((TablaFronteras[[#This Row],[Centro X]]-miX)^2+(TablaFronteras[[#This Row],[Centro Y]]-miY)^2),\"\")","v":""},null,{"$f":"MATCH(TablaFronteras[[#This Row],[Frontera]]&\"*\",Datos[Nombre],0)","v":52}]
["Uganda",222.0911865234375,158.65834045410156,23.381181716918945,26.36976432800293,{"$f":"TablaFronteras[[#This Row],[X]]+TablaFronteras[[#This Row],[Ancho]]/2","v":233.78177738189697},{"$f":"TablaFronteras[[#This Row],[Y]]+TablaFronteras[[#This Row],[Alto]]/2","v":171.84322261810303},{"$f":"IF(AND(TablaFronteras[[#This Row],[X]]<miX,miX<TablaFronteras[[#This Row],[X]]+TablaFronteras[[#This Row],[Ancho]],TablaFronteras[[#This Row],[Y]]<miY,miY<TablaFronteras[[#This Row],[Y]]+TablaFronteras[[#This Row],[Alto]]),SQRT((TablaFronteras[[#This Row],[Centro X]]-miX)^2+(TablaFronteras[[#This Row],[Centro Y]]-miY)^2),\"\")","v":""},null,{"$f":"MATCH(TablaFronteras[[#This Row],[Frontera]]&\"*\",Datos[Nombre],0)","v":53}]
["Yibuti",267.76434326171875,118.41740417480469,4.5650391578674316,8.4179525375366211,{"$f":"TablaFronteras[[#This Row],[X]]+TablaFronteras[[#This Row],[Ancho]]/2","v":270.04686284065247},{"$f":"TablaFronteras[[#This Row],[Y]]+TablaFronteras[[#This Row],[Alto]]/2","v":122.626380443573},{"$f":"IF(AND(TablaFronteras[[#This Row],[X]]<miX,miX<TablaFronteras[[#This Row],[X]]+TablaFronteras[[#This Row],[Ancho]],TablaFronteras[[#This Row],[Y]]<miY,miY<TablaFronteras[[#This Row],[Y]]+TablaFronteras[[#This Row],[Alto]]),SQRT((TablaFronteras[[#This Row],[Centro X]]-miX)^2+(TablaFronteras[[#This Row],[Centro Y]]-miY)^2),\"\")","v":""},null,{"$f":"MATCH(TablaFronteras[[#This Row],[Frontera]]&\"*\",Datos[Nombre],0)","v":54}]
["Zambia",190.57015991210938,216.27566528320313,48.4381103515625,47.196220397949219,{"$f":"TablaFronteras[[#This Row],[X]]+TablaFronteras[[#This Row],[Ancho]]/2","v":214.78921508789063},{"$f":"TablaFronteras[[#This Row],[Y]]+TablaFronteras[[#This Row],[Alto]]/2","v":239.87377548217773},{"$f":"IF(AND(TablaFronteras[[#This Row],[X]]<miX,miX<TablaFronteras[[#This Row],[X]]+TablaFronteras[[#This Row],[Ancho]],TablaFronteras[[#This Row],[Y]]<miY,miY<TablaFronteras[[#This Row],[Y]]+TablaFronteras[[#This Row],[Alto]]),SQRT((TablaFronteras[[#This Row],[Centro X]]-miX)^2+(TablaFronteras[[#This Row],[Centro Y]]-miY)^2),\"\")","v":""},null,{"$f":"MATCH(TablaFronteras[[#This Row],[Frontera]]&\"*\",Datos[Nombre],0)","v":55}]
["Zimbabue",203.92976379394531,252.2271728515625,31.553306579589844,32.772205352783203,{"$f":"TablaFronteras[[#This Row],[X]]+TablaFronteras[[#This Row],[Ancho]]/2","v":219.70641708374023},{"$f":"TablaFronteras[[#This Row],[Y]]+TablaFronteras[[#This Row],[Alto]]/2","v":268.6132755279541},{"$f":"IF(AND(TablaFronteras[[#This Row],[X]]<miX,miX<TablaFronteras[[#This Row],[X]]+TablaFronteras[[#This Row],[Ancho]],TablaFronteras[[#This Row],[Y]]<miY,miY<TablaFronteras[[#This Row],[Y]]+TablaFronteras[[#This Row],[Alto]]),SQRT((TablaFronteras[[#This Row],[Centro X]]-miX)^2+(TablaFronteras[[#This Row],[Centro Y]]-miY)^2),\"\")","v":""},null,{"$f":"MATCH(TablaFronteras[[#This Row],[Frontera]]&\"*\",Datos[Nombre],0)","v":56}]
["Total",null,null,null,null,null,null,{"$f":"SUBTOTAL(105,TablaFronteras[Distancia])","v":0}]
[]
[]
[]
[]
[]
["Frontera sin definir","X","Y","Ancho","Alto","Centro X","Centro Y","Distancia","Bandera","Fila"]
["Mayotte",null,null,null,null,{"$f":"TablaMásFronteras[[#This Row],[X]]+TablaMásFronteras[[#This Row],[Ancho]]/2","v":0},{"$f":"TablaMásFronteras[[#This Row],[Y]]+TablaMásFronteras[[#This Row],[Alto]]/2","v":0},{"$f":"IF(AND(TablaMásFronteras[[#This Row],[X]]<miX,miX<TablaMásFronteras[[#This Row],[X]]+TablaMásFronteras[[#This Row],[Ancho]],TablaMásFronteras[[#This Row],[Y]]<miY,miY<TablaMásFronteras[[#This Row],[Y]]+TablaMásFronteras[[#This Row],[Alto]]),SQRT((TablaMásFronteras[[#This Row],[Centro X]]-miX)^2+(TablaMásFronteras[[#This Row],[Centro Y]]-miY)^2),\"\")","v":""},null,{"$f":"MATCH(TablaMásFronteras[[#This Row],[Frontera sin definir]]&\"*\",Datos[Nombre],0)","v":{"$error":"#N/A"}}]
["Sáhara Occidental",28.285509999999999,48.558349999999997,36.05386,31.254169999999998,{"$f":"TablaMásFronteras[[#This Row],[X]]+TablaMásFronteras[[#This Row],[Ancho]]/2","v":46.312439999999995},{"$f":"TablaMásFronteras[[#This Row],[Y]]+TablaMásFronteras[[#This Row],[Alto]]/2","v":64.185434999999998},{"$f":"IF(AND(TablaMásFronteras[[#This Row],[X]]<miX,miX<TablaMásFronteras[[#This Row],[X]]+TablaMásFronteras[[#This Row],[Ancho]],TablaMásFronteras[[#This Row],[Y]]<miY,miY<TablaMásFronteras[[#This Row],[Y]]+TablaMásFronteras[[#This Row],[Alto]]),SQRT((TablaMásFronteras[[#This Row],[Centro X]]-miX)^2+(TablaMásFronteras[[#This Row],[Centro Y]]-miY)^2),\"\")","v":""},null,{"$f":"MATCH(TablaMásFronteras[[#This Row],[Frontera sin definir]]&\"*\",Datos[Nombre],0)","v":49}]
["Reunión",null,null,null,null,{"$f":"TablaMásFronteras[[#This Row],[X]]+TablaMásFronteras[[#This Row],[Ancho]]/2","v":0},{"$f":"TablaMásFronteras[[#This Row],[Y]]+TablaMásFronteras[[#This Row],[Alto]]/2","v":0},{"$f":"IF(AND(TablaMásFronteras[[#This Row],[X]]<miX,miX<TablaMásFronteras[[#This Row],[X]]+TablaMásFronteras[[#This Row],[Ancho]],TablaMásFronteras[[#This Row],[Y]]<miY,miY<TablaMásFronteras[[#This Row],[Y]]+TablaMásFronteras[[#This Row],[Alto]]),SQRT((TablaMásFronteras[[#This Row],[Centro X]]-miX)^2+(TablaMásFronteras[[#This Row],[Centro Y]]-miY)^2),\"\")","v":""},null,{"$f":"MATCH(TablaMásFronteras[[#This Row],[Frontera sin definir]]&\"*\",Datos[Nombre],0)","v":{"$error":"#N/A"}}]
["Santa Elena",null,null,null,null,{"$f":"TablaMásFronteras[[#This Row],[X]]+TablaMásFronteras[[#This Row],[Ancho]]/2","v":0},{"$f":"TablaMásFronteras[[#This Row],[Y]]+TablaMásFronteras[[#This Row],[Alto]]/2","v":0},{"$f":"IF(AND(TablaMásFronteras[[#This Row],[X]]<miX,miX<TablaMásFronteras[[#This Row],[X]]+TablaMásFronteras[[#This Row],[Ancho]],TablaMásFronteras[[#This Row],[Y]]<miY,miY<TablaMásFronteras[[#This Row],[Y]]+TablaMásFronteras[[#This Row],[Alto]]),SQRT((TablaMásFronteras[[#This Row],[Centro X]]-miX)^2+(TablaMásFronteras[[#This Row],[Centro Y]]-miY)^2),\"\")","v":""},null,{"$f":"MATCH(TablaMásFronteras[[#This Row],[Frontera sin definir]]&\"*\",Datos[Nombre],0)","v":{"$error":"#N/A"}}]
["Seychelles",null,null,null,null,{"$f":"TablaMásFronteras[[#This Row],[X]]+TablaMásFronteras[[#This Row],[Ancho]]/2","v":0},{"$f":"TablaMásFronteras[[#This Row],[Y]]+TablaMásFronteras[[#This Row],[Alto]]/2","v":0},{"$f":"IF(AND(TablaMásFronteras[[#This Row],[X]]<miX,miX<TablaMásFronteras[[#This Row],[X]]+TablaMásFronteras[[#This Row],[Ancho]],TablaMásFronteras[[#This Row],[Y]]<miY,miY<TablaMásFronteras[[#This Row],[Y]]+TablaMásFronteras[[#This Row],[Alto]]),SQRT((TablaMásFronteras[[#This Row],[Centro X]]-miX)^2+(TablaMásFronteras[[#This Row],[Centro Y]]-miY)^2),\"\")","v":""},null,{"$f":"MATCH(TablaMásFronteras[[#This Row],[Frontera sin definir]]&\"*\",Datos[Nombre],0)","v":41}]
["Total",null,null,null,null,null,null,{"$f":"SUBTOTAL(105,TablaMásFronteras[Distancia])","v":0}]

{"sheet":"Datos","index":2,"n_rows":57,"n_cols":10,"rows_kept":57,"cut":false,"hidden":false,"merged":[]}
["Nombre","Nombre oficial","Capital","Moneda","Idioma oficial","Forma de Gobierno","Superficie (km²)","Población","Población (2018)","PIB per cápita (US$)"]
["Angola","República de Angola","Luanda","Kwanza","Portugués","República presidencial",1246789,36677682,24300000,6881]
["Argelia","República Argelina Democrática y Popular","Argel","Dinar argelino","Árabe","República semipresidencial",2381740,46778820,42200000,16085]
["Benín","República de Benín","Porto Novo","Franco CFA de África Occidental","Francés","República presidencial",112622,13259644,10598482,2184]
["Botsuana","República de Botsuana","Gaborone","Pula","Inglés, setsuana","República parlamentaria",581726,2512959,2254126,18843]
["Burkina Faso",null,"Uagadugú","Franco CFA de África Occidental","Francés","República semipresidencial",274000,23061352,17589198,1879]
["Burundi","República de Burundi","Gitega","Franco de Burundi","Kirundi, francés, suajili","República presidencial",27830,13298954,12100000,818]
["Cabo Verde","República de Cabo Verde","Praia","Escudo caboverdiano","Portugués","República parlamentaria",4033,579019,524833,6867]
["Camerún","República de Camerún","Yaundé","Franco CFA de África Central","Francés, inglés","República presidencial",475442,28856775,22534532,3358]
["Chad","República del Chad","Yamena","Franco CFA de África Central","Francés, árabe","República presidencial",1284000,18362965,13670084,2439]
["Comoras","Unión de las Comoras","Moroni","Franco comorano","Árabe, francés","República presidenciall",2235,943768,724300,1523]
["Costa de Marfil","República de Costa de Marfil","Yamusukro,\r\nAbiyán","Franco CFA de África Occidental","Francés","República presidencial",322460,28560501,23740424,3841]
["Egipto","República Árabe de Egipto","El Cairo","Libra egipcia","Árabe","República semipresidencial",1001449,110223169,99402455,3005]
["Eritrea","Estado de Eritrea","Asmara","Nakfa","Ninguna. \r\nLenguas de trabajo: Tigriña, árabe, nara, saho, afar, italiano, entre otros.","república unipartidista bajo un gobierno de transición",117600,3828025,5869869,1349]
["Etiopía","República Democrática Federal de Etiopía","Adís Abeba","Birr","Amhárico","República federal parlamentaria",1104300,125088390,98665000,2556]
["Gabón","República Gabonesa","Libreville","Franco CFA de África Central","Francés","República presidencial",267668,2397093,1811079,19252]
["Gambia","República de Gambia","Banjul","Dalasi","Inglés","República presidencial",10380,2695710,1825000,1664]
["Ghana","República de Ghana","Acra","Cedi","Inglés","República presidencial",238534,33699877,24223431,4650]
["Guinea","República de Guinea","Conakry","Franco guineano","Francés","República presidencial",245857,14365577,11628972,1394]
["Guinea Ecuatorial","República de Guinea Ecuatorial","Malabo","Franco CFA de África Central","Español, francés, portugués","República presidencial",28051,1544806,1222442,25988]
["Guinea-Bissau","República de Guinea Bissau","Bissau","Franco CFA de África Occidental","Portugués","República semipresidencial",36125,2133429,1693398,1568]
["Kenia","República de Kenia","Nairobi","Chelín keniano","Suajili, inglés","República presidencial",580367,58856854,47564296,3516]
["Lesoto","Reino de Lesoto","Maseru","Loti","Sotho del Sur, inglés","Monarquía parlamentaria",30355,2234974,2203821,3752]
["Liberia","República de Liberia","Monrovia","Dólar liberiano","Inglés","República presidencial",111369,5516743,3476608,881]
["Libia","Estado de Libia","Trípoli","Dinar libio","Árabe","República parlamentaria bajo un Gobierno provisional",1759540,6835223,5670688,14236]
["Madagascar","República de Madagascar","Antananarivo","Ariary","Malgache, francés, inglés","República semipresidencial",587041,30408014,24430325,1563]
["Malaui","República de Malaui","Lilongüe","Kwacha malauí","Inglés, chichewa","República presidencial",118484,21222138,16407000,1172]
["Malí","República de Malí","Bamako","Franco CFA de África Occidental","Francés","República semipresidencial",1240192,22356548,17599694,2360]
["Marruecos","Reino de Marruecos","Rabat","Dirham marroquí","Árabe","Monarquía semiconstitucional",446550,38675756,35330305,9339]
["Mauricio","República de Mauricio","Port Louis","Rupia de Mauricio","Inglés, criollo mauriciano","República parlamentaria",2040,1290608,1262132,22909]
["Mauritania","República Islámica de Mauritania","Nuakchot","Ouguiya","Árabe","República semipresidencial",1030700,5046747,4403313,4004]
["Mozambique","República de Mozambique","Maputo","Metical mozambiqueño","Portugués","República presidencial",801590,34293745,27909798,1512]
["Namibia","República de Namibia","Windhoek","Dólar namibio","Inglés","República presidencial",825418,2747939,2113007,11756]
["Nigeria","República Federal de Nigeria","Abuya","Naira","Inglés","República federal presidencial",923768,225458204,188462640,6351]
["Níger","República del Níger","Niamey","Franco CFA de África Occidental","Francés, hausa","República semipresidencial",1267000,27653814,18638600,1154]
["República Centroafricana","República Centroafricana","Bangui","Franco CFA de África Central","Sango, francés","República presidencial",622984,5160087,4709000,724]
["República Democrática del Congo","República Democrática del Congo","Kinshasa","Franco congoleño","Francés","República semipresidencial",2344858,99515716,82243000,788]
["República del Congo","República del Congo","Brazzaville","Franco CFA de África Central","Francés","República presidencial",342000,6009555,4662446,6985]
["Ruanda","República de Ruanda","Kigali","Franco ruandés","Kinyarwanda, francés, inglés","República presidencial",26798,14025124,12718198,2397]
["Santo Tomé y Príncipe","República Democrática de Santo Tomé y Príncipe","Santo Tomé","Dobra","Portugués","República semipresidencial",964,235845,193413,3220]
["Senegal","República del Senegal","Dakar","Franco CFA de África Occidental","Francés","República semipresidencial",196723,18596101,15589485,1033]
["Seychelles","República de Seychelles","Victoria","Rupia de Seychelles","Inglés, francés, criollo seychelense","República presidencial",451,100790,100212,30486]
["Sierra Leona","República de Sierra Leona","Freetown","Leone","Inglés","República presidencial",71740,8596161,7075641,1760]
["Somalia","Somalia","Mogadiscio","Chelín somalí","Somalí","República federal parlamentaria",637661,17157760,14317996,3077]
["Somalilandia","República de Somalilandia​","Hargeisa","Chelín somalilandés","Somalí, árabe","República presidencial",137600,null,3500000]
["Suazilandia","Reino de Suazilandia","Lobamba (legislativa)\r\nMbabane (administrativa)","Lilangeni","Inglés, suazi","Monarquía absoluta",17364,1223431,1343098,9896]
["Sudáfrica","República de Sudáfrica","Pretoria (ejecutiva),\r\nBloemfontein (judicial),\r\nCiudad del Cabo (legislativa)","Rand sudafricano","Afrikáans, inglés, ndebele del sur, sotho del Norte, sotho, suazi, tsonga, tswana, venda, xhosa, zulú","República parlamentaria",1221037,61446203,58775022,13865]
["Sudán","República de Sudán","Jartum","Libra sudanesa","Árabe, inglés","República federal presidencial , bajo Junta militar",1886068,47079118,40235000,4578]
["Sudán del Sur","República de Sudán del Sur","Yuba","Libra sursudanesa","Inglés","República federal presidencial",619745,12996424,12340000,1420]
["Sáhara Occidental","República Árabe Saharaui Democrática","El Aaiún (declarada), Bir Lehlu (temporal)","Peseta saharaui, Dinar argelino","Árabe, español","Territorio no autónomo",266000,642650,582000]
["Tanzania","República Unida de Tanzania","Dodoma","Chelín tanzano","Suajili, inglés","República presidencial",945087,66420320,51822621,3296]
["Togo","República Togolesa","Lomé","Franco CFA de África Occidental","Francés","República presidencial",56785,9061262,7756937,1619]
["Túnez","República Tunecina","Túnez","Dinar tunecino","Árabe","República parlamentaria",163610,12277167,11725253,12862]
["Uganda","República de Uganda","Kampala","Chelín ugandés","Inglés, suajili","República presidencial",236040,50978989,42971836,2115]
["Yibuti","República de Yibuti","Yibuti","Franco yibutiano","Árabe, francés","República semipresidencial",23200,1032373,846687,3584]
["Zambia","República de Zambia","Lusaka","Kwacha zambiano","Inglés","República presidencial",752614,20362283,16212000,3898]
["Zimbabue","República de Zimbabue","Harare","Monedas bono de Zimbabue, Dólar estadounidense, Pula","Inglés, shona","República presidencial",390580,16057365,14438802,2330]